bitfinex-derivatives/quotes_SOLF0:USTF0_20250919
["timestamp","ask_amount","ask_price","bid_price","bid_amount"]
[1758248376009,1.33533782,247.03,246.97,0.02608411]
[1758248376206,1.33533782,247.0,246.97,0.02608411]
[1758248376708,6.68,246.99,246.97,0.02608411]
[1758248377208,1.33533782,247.0,246.97,0.02608411]
[1758248377406,6.68,246.99,246.97,0.02608411]
[1758248377602,1.33533782,247.0,246.97,0.02608411]
[1758248377907,6.68,246.99,246.97,0.02608411]
[1758248378306,1.33533782,247.0,246.97,0.02608411]
[1758248379311,1.33533782,247.03,246.98,6.57]
[1758248379507,6.68,247.02,246.98,6.57]
[1758248379712,1.33533782,247.03,246.98,6.57]
[1758248379913,6.68,247.02,246.98,0.03008172]
[1758248380710,1.33533782,247.03,246.98,0.03008172]
[1758248381105,6.68,247.02,246.98,0.03008172]
[1758248382009,6.68,247.0,246.98,0.03008172]
[1758248382614,1.33533782,247.01,246.98,0.03008172]
[1758248383210,6.68,247.0,246.98,0.03008172]
[1758248383413,1.33533782,247.01,246.98,0.03008172]
[1758248383911,6.68,247.0,246.98,0.03008172]
[1758248384113,1.33533782,247.01,246.98,0.03008172]
[1758248384314,6.68,247.0,246.98,0.03008172]
[1758248384516,6.68,246.99,246.98,0.03008172]
[1758248387319,7.08,246.99,246.98,0.03008172]
[1758248389224,7.08,246.99,246.83,1.33533782]
[1758248389423,8.01533782,246.92,246.83,6.57]
[1758248390726,0.02928438,246.9,246.83,6.57]
[1758248393321,0.02928438,246.9,246.85,6.57]
[1758248393517,0.02928438,246.9,246.84,0.02612151]
[1758248393722,0.02928438,246.9,246.85,6.57]
[1758248393922,0.02928438,246.9,246.84,6.59612151]
[1758248396023,6.71928438,246.9,246.84,6.59612151]
[1758248396727,0.02928438,246.9,246.84,6.59612151]
[1758248399133,0.02928438,246.9,246.84,8.68456512]
[1758248399430,0.02928438,246.9,246.85,7.07]
[1758248400126,0.02928438,246.9,246.87,2.08844361]
[1758248400332,0.02928438,246.9,246.88,7.07]
[1758248401033,0.02928438,246.9,246.87,2.08844361]
[1758248401231,0.02928438,246.9,246.88,7.07]
[1758248401833,0.02928438,246.9,246.87,2.08844361]
[1758248402332,0.02928438,246.9,246.88,7.07]
[1758248402933,0.02928438,246.9,246.87,2.08844361]
[1758248403126,0.02928438,246.9,246.88,7.07]
[1758248403531,0.02928438,246.9,246.84,2.11456512]
[1758248403735,0.02928438,246.9,246.85,7.07]
[1758248407031,0.02928438,246.9,246.84,2.11456512]
[1758248407337,0.02928438,246.9,246.84,0.02612151]
[1758248407526,0.02928438,246.9,246.85,7.07]
[1758248407732,0.02928438,246.9,246.84,0.02612151]
[1758248408630,0.02928438,246.9,246.85,7.07]
[1758248408839,0.02928438,246.9,246.84,0.02612151]
[1758248409132,0.02928438,246.9,246.85,7.07]
[1758248409440,0.02928438,246.9,246.84,0.02612151]
[1758248410336,6.95,246.89,246.84,0.02612151]
[1758248410535,2.11772799,246.9,246.84,0.02612151]
[1758248410836,6.95,246.89,246.84,0.02612151]
[1758248411235,2.11772799,246.9,246.84,0.02612151]
[1758248411837,6.95,246.89,246.84,0.02612151]
[1758248412235,2.11772799,246.9,246.84,0.02612151]
[1758248412637,6.95,246.89,246.84,0.02612151]
[1758248412942,9.06772799,246.9,246.84,0.02612151]
[1758248413339,0.02928438,246.9,246.85,7.07]
[1758248414043,0.02928438,246.9,246.84,0.02612151]
[1758248414537,0.02928438,246.9,246.85,7.07]
[1758248414931,0.02928438,246.9,246.84,7.09612151]
[1758248417230,6.95,246.89,246.84,7.09612151]
[1758248417434,9.06772799,246.9,246.84,7.09612151]
[1758248419740,9.06772799,246.9,246.84,0.02612151]
[1758248421244,2.11772799,246.9,246.85,7.07]
[1758248421443,0.02928438,246.9,246.84,7.09612151]
[1758248425044,2.11772799,246.9,246.84,7.09612151]
[1758248425243,6.95,246.89,246.84,7.09612151]
[1758248425445,9.06772799,246.9,246.84,7.09612151]
[1758248426149,6.97928438,246.9,246.84,7.09612151]
[1758248429049,9.06772799,246.9,246.84,7.09612151]
[1758248433855,2.11772799,246.9,246.84,7.09612151]
[1758248434754,0.02928438,246.9,246.84,7.09612151]
[1758248437452,6.49928438,246.9,246.84,7.09612151]
[1758248437755,8.58772799,246.9,246.84,7.09612151]
[1758248437956,8.58772799,246.9,246.84,0.02612151]
[1758248438858,6.47,246.86,246.84,0.02612151]
[1758248439757,2.08844361,246.87,246.84,0.02612151]
[1758248439957,6.47,246.86,246.84,0.02612151]
[1758248440758,2.08844361,246.87,246.84,0.02612151]
[1758248440955,6.47,246.86,246.84,0.02612151]
[1758248441156,2.08844361,246.87,246.84,0.02612151]
[1758248441454,6.47,246.86,246.84,0.02612151]
[1758248441658,2.08844361,246.87,246.84,0.02612151]
[1758248441858,6.47,246.86,246.84,0.02612151]
[1758248442058,2.08844361,246.87,246.84,0.02612151]
[1758248442259,6.47,246.86,246.84,0.02612151]
[1758248442854,2.08844361,246.87,246.84,0.02612151]
[1758248443260,6.47,246.86,246.84,0.02612151]
[1758248443864,2.08844361,246.87,246.84,0.02612151]
[1758248444164,6.47,246.86,246.84,0.02612151]
[1758248444360,2.08844361,246.87,246.84,0.02612151]
[1758248444657,6.47,246.86,246.84,0.02612151]
[1758248444855,2.08844361,246.87,246.84,0.02612151]
[1758248445054,6.47,246.86,246.84,0.02612151]
[1758248445460,2.08844361,246.87,246.84,0.02612151]
[1758248445959,6.47,246.86,246.84,0.02612151]
[1758248446457,2.08844361,246.87,246.84,0.02612151]
[1758248446863,6.47,246.86,246.84,0.02612151]
[1758248447264,2.08844361,246.87,246.84,0.02612151]
[1758248447464,6.47,246.86,246.84,0.02612151]
[1758248447957,2.08844361,246.87,246.84,0.02612151]
[1758248448960,6.47,246.86,246.84,0.02612151]
[1758248449164,2.08844361,246.87,246.84,0.02612151]
[1758248449363,6.47,246.86,246.84,0.02612151]
[1758248449563,2.08844361,246.87,246.84,0.02612151]
[1758248449965,6.47,246.86,246.84,0.02612151]
[1758248451259,2.08844361,246.87,246.84,0.02612151]
[1758248451666,6.47,246.86,246.84,0.02612151]
[1758248451870,6.47,246.85,246.84,0.02612151]
[1758248452968,0.02928438,246.9,246.84,0.02612151]
[1758248452969,1.33719482,246.89,246.84,0.02612151]
[1758248453166,7.80719482,246.89,246.85,6.94]
[1758248453467,1.33719482,246.89,246.85,6.94]
[1758248453765,6.49928438,246.9,246.84,0.02612151]
[1758248454959,1.33719482,246.87,246.84,0.02612151]
[1758248455165,7.80719482,246.85,246.84,0.02612151]
[1758248459769,6.47,246.85,246.84,0.02612151]
[1758248460070,7.80719482,246.85,246.84,0.02612151]
[1758248460862,6.47,246.85,246.84,0.02612151]
[1758248461062,7.80719482,246.85,246.84,0.02612151]
[1758248461466,8.20719482,246.85,246.84,0.02612151]
[1758248461860,6.87,246.85,246.84,0.02612151]
[1758248462168,7.80719482,246.85,246.84,0.02612151]
[1758248463267,7.80719482,246.85,246.7,4.52974798]
[1758248463268,8.20719482,246.85,246.72,6.42]
[1758248463470,1.33719482,246.78,246.72,6.42]
[1758248463769,8.28719482,246.78,246.72,6.42]
[1758248464567,0.03045542,246.77,246.72,6.42]
[1758248464769,6.95,246.76,246.72,6.42]
[1758248465571,6.95,246.75,246.72,6.42]
[1758248465769,1.33719482,246.76,246.7,6.42]
[1758248465970,0.03045542,246.77,246.7,6.42]
[1758248466969,0.03045542,246.77,246.71,1.33719482]
[1758248467169,0.03045542,246.77,246.72,6.42]
[1758248467371,0.03045542,246.77,246.71,1.33719482]
[1758248467669,0.03045542,246.77,246.72,6.42]
[1758248468170,0.03045542,246.77,246.71,1.33719482]
[1758248468574,0.03045542,246.77,246.72,6.42]
[1758248468970,0.03045542,246.77,246.71,1.33719482]
[1758248469168,0.03045542,246.77,246.76,6.42]
[1758248470573,0.03045542,246.77,246.76,7.75719482]
[1758248470768,0.03045542,246.77,246.76,6.42]
[1758248470974,0.03045542,246.77,246.76,7.75719482]
[1758248472171,0.03045542,246.77,246.76,8.15719482]
[1758248472670,0.03045542,246.77,246.76,6.82]
[1758248472973,0.03045542,246.77,246.76,7.75719482]
[1758248474168,0.03045542,246.77,246.76,8.15719482]
[1758248475969,6.95,246.88,246.76,1.73719482]
[1758248476170,1.33719482,246.9,246.84,6.42]
[1758248476475,8.28719482,246.9,246.84,6.42]
[1758248477981,1.33719482,246.86,246.78,6.42]
[1758248478780,8.28719482,246.87,246.8,6.42]
[1758248479279,8.28719482,246.87,246.81,1.33719482]
[1758248479476,6.95,246.87,246.81,1.33719482]
[1758248480274,6.95,246.87,246.8,6.42]
[1758248480275,1.33719482,246.89,246.82,1.33719482]
[1758248480579,1.33719482,246.89,246.82,7.75719482]
[1758248481277,1.33719482,246.89,246.82,6.42]
[1758248481968,8.28719482,246.91,246.83,1.33719482]
[1758248482277,8.28719482,246.91,246.52,15.8477115]
[1758248482278,1.33719482,246.84,246.7,6.42]
[1758248482482,6.95,246.79,246.7,6.42]
[1758248482980,8.28719482,246.79,246.7,6.42]
[1758248483377,6.95,246.76,246.72,0.02728666]
[1758248483679,0.02567893,246.77,246.72,0.02728666]
[1758248484571,6.95,246.75,246.72,0.02728666]
[1758248487282,1.33719482,246.76,246.72,0.02728666]
[1758248488581,6.7,246.75,246.72,0.02728666]
[1758248488782,1.33719482,246.76,246.72,0.02728666]
[1758248488983,6.7,246.75,246.72,0.02728666]
[1758248489283,1.33719482,246.76,246.72,0.02728666]
[1758248489484,6.7,246.75,246.72,6.73728666]
[1758248489784,8.06287375,246.77,246.73,6.71]
[1758248490692,6.7,246.76,246.73,6.71]
[1758248490986,6.7,246.76,246.72,0.02728666]
[1758248492496,6.7,246.76,246.72,6.73728666]
[1758248494497,1.36287375,246.77,246.72,6.73728666]
[1758248494698,6.7,246.76,246.72,6.73728666]
[1758248495199,1.33719482,246.74,246.72,0.02728666]
[1758248495399,1.36287375,246.77,246.72,0.02728666]
[1758248495596,8.03719482,246.75,246.72,0.02728666]
[1758248495797,0.02567893,246.77,246.72,6.73728666]
[1758248496002,1.33719482,246.76,246.72,0.02728666]
[1758248496296,1.33719482,246.76,246.73,6.71]
[1758248496995,6.7,246.76,246.73,6.71]
[1758248497809,6.7,246.76,246.72,0.02728666]
[1758248498100,6.7,246.76,246.72,6.73728666]
[1758248498693,8.06287375,246.77,246.72,0.02728666]
[1758248498891,8.06287375,246.77,246.73,6.71]
[1758248499097,8.06287375,246.77,246.72,0.02728666]
[1758248499098,6.7,246.73,246.72,0.02728666]
[1758248499501,8.03719482,246.73,246.72,0.02728666]
[1758248502805,6.7,246.73,246.72,0.02728666]
[1758248503002,1.33719482,246.74,246.72,0.02728666]
[1758248503410,0.02567893,246.77,246.72,0.02728666]
[1758248503608,0.02567893,246.77,246.72,6.73728666]
[1758248503802,0.02567893,246.77,246.72,0.02728666]
[1758248504007,6.7,246.76,246.72,0.02728666]
[1758248504207,0.02567893,246.77,246.72,0.02728666]
[1758248504611,6.7,246.76,246.72,0.02728666]
[1758248505112,0.02567893,246.77,246.72,0.02728666]
[1758248505312,6.7,246.76,246.72,0.02728666]
[1758248505810,0.02567893,246.77,246.72,0.02728666]
[1758248506212,0.02567893,246.77,246.74,6.71]
[1758248506406,0.02567893,246.77,246.72,0.02728666]
[1758248507308,6.7,246.76,246.72,0.02728666]
[1758248507616,0.02567893,246.77,246.72,0.02728666]
[1758248508116,6.7,246.76,246.72,1.36448148]
[1758248509009,0.02567893,246.77,246.72,1.36448148]
[1758248509207,6.7,246.76,246.72,0.02728666]
[1758248509510,0.02567893,246.77,246.72,0.02728666]
[1758248509911,6.7,246.76,246.72,0.02728666]
[1758248511916,1.36287375,246.77,246.72,0.02728666]
[1758248512616,6.7,246.76,246.72,0.02728666]
[1758248513417,1.36287375,246.77,246.72,0.02728666]
[1758248513912,6.7,246.76,246.72,0.02728666]
[1758248514114,0.02567893,246.77,246.72,0.02728666]
[1758248516422,7.04,246.76,246.72,0.02728666]
[1758248516630,0.02567893,246.77,246.72,0.02728666]
[1758248517119,7.04,246.76,246.72,0.02728666]
[1758248517319,0.02567893,246.77,246.72,0.02728666]
[1758248518524,6.95,246.76,246.72,0.02728666]
[1758248518718,0.02567893,246.77,246.72,0.02728666]
[1758248519323,6.95,246.76,246.72,0.02728666]
[1758248519827,0.02567893,246.77,246.72,0.02728666]
[1758248520321,0.02567893,246.77,246.73,6.81]
[1758248520730,0.02567893,246.77,246.72,0.02728666]
[1758248520927,0.02567893,246.77,246.73,6.81]
[1758248521127,0.02567893,246.77,246.72,0.02728666]
[1758248521528,0.02567893,246.77,246.72,2.11846457]
[1758248522028,0.02567893,246.77,246.73,6.81]
[1758248522329,6.97567893,246.77,246.73,6.81]
[1758248522726,6.97567893,246.77,246.72,2.11846457]
[1758248523125,6.95,246.76,246.72,0.02728666]
[1758248523327,0.02567893,246.77,246.72,0.02728666]
[1758248523521,6.95,246.76,246.72,0.02728666]
[1758248523825,0.02567893,246.77,246.72,0.02728666]
[1758248524024,6.95,246.76,246.72,0.02728666]
[1758248524228,0.02567893,246.77,246.72,0.02728666]
[1758248525324,6.95,246.76,246.72,0.02728666]
[1758248525521,0.02567893,246.77,246.72,0.02728666]
[1758248525826,6.95,246.76,246.72,0.02728666]
[1758248526022,0.02567893,246.77,246.72,0.02728666]
[1758248526227,0.02567893,246.77,246.74,6.81]
[1758248526524,0.02567893,246.77,246.75,10.36983586]
[1758248526721,0.02567893,246.77,246.76,12.46101377]
[1758248528825,313.39,246.89,246.8,8.90117791]
[1758248529030,313.39,246.89,246.81,3.55983586]
[1758248529232,313.39,246.89,246.82,3.55983586]
[1758248529433,313.39,246.89,246.83,3.55983586]
[1758248529727,313.39,246.89,246.84,3.55983586]
[1758248529932,306.44,246.89,246.85,3.55983586]
[1758248530130,6.95,246.88,246.86,3.55983586]
[1758248530329,6.95,246.88,246.87,3.55983586]
[1758248530922,6.95,246.88,246.84,0.02998354]
[1758248531123,6.95,246.88,246.85,3.55886662]
[1758248531427,6.95,246.88,246.86,3.55886662]
[1758248531629,6.95,246.88,246.87,3.55886662]
[1758248532227,108.47,246.93,246.87,3.55886662]
[1758248532424,101.52,246.93,246.88,3.55886662]
[1758248532624,6.95,246.92,246.89,3.55886662]
[1758248532827,6.95,246.92,246.85,8.90117791]
[1758248532828,6.95,246.92,246.9,3.55886662]
[1758248533028,6.95,246.92,246.91,3.55886662]
[1758248537632,108.33,246.92,246.91,3.55886662]
[1758248539232,108.73,246.92,246.89,0.02645968]
[1758248539435,9.04117791,246.9,246.89,0.02645968]
[1758248539738,9.04117791,246.9,246.89,3.57266748]
[1758248539927,9.44117791,246.9,246.89,0.02645968]
[1758248540934,10.14644512,246.9,246.89,0.02645968]
[1758248541130,0.70526721,246.9,246.89,0.02645968]
[1758248541335,65.06526721,246.9,246.89,3.57214472]
[1758248542433,101.32,246.9,246.89,3.57214472]
[1758248543234,6.95,246.95,246.89,3.57214472]
[1758248543434,43.86,246.94,246.9,3.54568504]
[1758248543638,50.81,246.94,246.91,3.54568504]
[1758248543838,50.81,246.94,246.92,3.54568504]
[1758248544035,50.81,246.94,246.89,6.83645968]
[1758248544234,50.81,246.94,246.9,10.35329247]
[1758248544534,50.81,246.94,246.91,3.54329247]
[1758248544730,6.95,246.94,246.92,3.54329247]
[1758248545039,108.21,246.94,246.9,6.81]
[1758248545332,101.26,246.94,246.91,3.54259994]
[1758248545634,6.95,246.93,246.89,0.02645968]
[1758248545834,6.95,246.93,246.9,3.5428108]
[1758248546139,101.26,246.94,246.91,3.5428108]
[1758248546335,6.95,246.93,246.89,0.02645968]
[1758248546535,101.26,246.94,246.9,3.54264284]
[1758248546840,101.26,246.94,246.91,3.54264284]
[1758248547137,6.95,246.93,246.89,0.02645968]
[1758248547438,6.95,246.93,246.9,3.54259182]
[1758248547734,6.95,246.93,246.91,3.54259182]
[1758248547938,6.95,246.93,246.89,7.13645968]
[1758248548140,6.95,246.93,246.9,3.54234138]
[1758248548341,101.18,246.93,246.91,10.65234138]
[1758248548634,101.18,246.94,246.92,3.54234138]
[1758248548839,101.18,246.94,246.93,3.54234138]
[1758248550641,101.18,246.94,246.89,0.02645968]
[1758248550840,101.18,246.94,246.9,3.54536622]
[1758248551040,101.18,246.94,246.91,3.54536622]
[1758248551343,6.99,246.93,246.92,3.54536622]
[1758248553243,101.24,246.94,246.92,3.54536622]
[1758248553444,101.24,246.94,246.93,3.54461059]
[1758248554747,108.23,246.94,246.93,3.54461059]
[1758248554938,108.23,246.94,246.93,3.54454205]
[1758248557545,108.23,246.94,246.89,0.02645968]
[1758248557750,6.99,246.93,246.9,3.545085]
[1758248557941,6.99,246.93,246.91,3.545085]
[1758248558147,0.70504574,246.95,246.92,3.545085]
[1758248558447,0.70504574,246.95,246.89,0.02645968]
[1758248558448,6.99,246.93,246.89,0.02645968]
[1758248558646,6.99,246.93,246.9,3.54547]
[1758248558847,6.99,246.93,246.91,3.54547]
[1758248559042,6.99,246.93,246.92,3.54547]
[1758248559250,107.89,246.93,246.92,3.54547]
[1758248562057,107.85,246.93,246.92,3.54547]
[1758248564857,6.99,246.93,246.92,3.54547]
[1758248565059,107.77,246.93,246.92,3.54547]
[1758248567262,100.78,246.93,246.92,3.54547]
[1758248568660,107.77,246.93,246.92,3.54547]
[1758248569662,107.67,246.93,246.92,3.54547]
[1758248571267,107.63,246.93,246.92,3.54547]
[1758248573570,107.63,246.93,246.92,3.56365504]
[1758248574067,107.63,246.93,246.89,0.02645968]
[1758248575774,108.96667677,246.93,246.89,0.02645968]
[1758248576072,7.09,246.9,246.89,0.02645968]
[1758248576369,107.67,246.9,246.89,0.02645968]
[1758248576964,109.00667677,246.9,246.89,0.02645968]
[1758248583872,107.67,246.9,246.89,0.02645968]
[1758248584168,7.09,246.9,246.89,0.02645968]
[1758248584369,6.78,246.93,246.89,0.02645968]
[1758248584570,44.7,246.92,246.91,1.33667677]
[1758248584967,51.48,246.92,246.91,1.33667677]
[1758248585269,51.48,246.92,246.89,1.36313645]
[1758248585575,6.78,246.91,246.9,1.33667677]
[1758248586673,44.7,246.92,246.9,1.33667677]
[1758248586974,51.48,246.92,246.9,1.33667677]
[1758248587269,51.48,246.92,246.89,0.02645968]
[1758248587572,6.78,246.91,246.9,1.33667677]
[1758248588672,44.7,246.92,246.9,1.33667677]
[1758248588873,44.7,246.92,246.91,6.82]
[1758248589173,44.7,246.92,246.9,1.33667677]
[1758248590575,6.78,246.91,246.9,1.33667677]
[1758248591578,6.78,246.91,246.89,0.02645968]
[1758248591778,44.7,246.92,246.89,0.02645968]
[1758248591980,6.78,246.91,246.89,0.02645968]
[1758248592480,44.7,246.92,246.89,0.02645968]
[1758248593278,6.78,246.91,246.89,0.02645968]
[1758248593873,44.7,246.92,246.89,0.02645968]
[1758248594078,6.78,246.91,246.89,0.02645968]
[1758248594279,44.7,246.92,246.89,0.02645968]
[1758248594478,6.78,246.91,246.89,0.02645968]
[1758248594678,44.7,246.92,246.89,0.02645968]
[1758248595078,6.78,246.91,246.89,0.02645968]
[1758248595474,44.7,246.92,246.89,0.02645968]
[1758248596271,6.78,246.91,246.89,0.02645968]
[1758248596584,8.11667677,246.91,246.89,0.02645968]
[1758248599480,1.33667677,246.91,246.89,0.02645968]
[1758248599671,6.78,246.9,246.89,0.02645968]
[1758248601676,6.78,246.9,246.76,6.82]
[1758248601877,1.33667677,246.91,246.78,1.33667677]
[1758248601878,6.78,246.84,246.78,1.33667677]
[1758248602278,6.78,246.84,246.76,8.15667677]
[1758248605181,35.8,246.84,246.76,8.15667677]
[1758248606187,35.8,246.84,246.78,1.33667677]
[1758248606388,35.8,246.84,246.76,6.82]
[1758248606583,35.8,246.84,246.78,1.33667677]
[1758248607886,6.78,246.84,246.78,1.33667677]
[1758248608088,47.94,246.84,246.78,1.33667677]
[1758248611393,47.94,246.84,246.76,6.82]
[1758248611580,47.94,246.84,246.77,1.33667677]
[1758248613495,47.94,246.84,246.76,6.82]
[1758248613685,47.94,246.84,246.77,1.33667677]
[1758248615388,47.94,246.84,246.76,8.15667677]
[1758248615593,47.94,246.84,246.76,1.33667677]
[1758248616497,6.51,246.82,246.72,6.63]
[1758248616799,49.44,246.84,246.77,6.63]
[1758248616985,6.51,246.83,246.79,1.33667677]
[1758248617390,49.44,246.84,246.79,1.33667677]
[1758248617688,6.51,246.83,246.79,1.33667677]
[1758248617896,49.44,246.84,246.79,1.33667677]
[1758248618288,6.51,246.83,246.79,1.33667677]
[1758248618584,68.47,246.85,246.79,1.33667677]
[1758248619497,68.47,246.85,246.77,6.63]
[1758248619699,68.47,246.85,246.78,1.33667677]
[1758248621301,68.47,246.85,246.77,6.63]
[1758248621502,68.47,246.85,246.77,1.33667677]
[1758248621891,68.47,246.85,246.74,6.63]
[1758248622091,1.33667677,246.84,246.77,1.33667677]
[1758248622296,6.51,246.83,246.77,1.33667677]
[1758248624299,80.23,246.83,246.77,1.33667677]
[1758248625004,7.84667677,246.82,246.73,1.33667677]
[1758248625494,7.84667677,246.82,246.7,6.63]
[1758248625803,7.84667677,246.82,246.74,1.33667677]
[1758248626206,6.51,246.79,246.72,1.33667677]
[1758248626603,94.97,246.79,246.72,1.33667677]
[1758248626805,102.53,246.79,246.72,1.33667677]
[1758248631611,102.53,246.79,246.7,6.63]
[1758248631812,102.53,246.79,246.71,1.33667677]
[1758248635816,99.74,246.78,246.7,6.63]
[1758248636017,99.74,246.78,246.7,8.7208957]
[1758248636211,6.51,246.79,246.7,8.7208957]
[1758248636408,34.84,246.78,246.71,6.57]
[1758248637705,6.93,246.77,246.71,6.57]
[1758248642021,6.93,246.77,246.68,2.0908957]
[1758248642322,6.93,246.77,246.69,7.05]
[1758248643618,7.07,246.8,246.72,7.05]
[1758248643811,37.71,246.8,246.72,7.05]
[1758248644822,7.07,246.8,246.72,7.05]
[1758248645723,7.07,246.8,246.74,2.0908957]
[1758248645913,7.07,246.8,246.75,7.05]
[1758248646114,7.07,246.8,246.74,2.0908957]
[1758248646321,7.07,246.8,246.74,9.1408957]
[1758248653329,7.07,246.8,246.75,7.05]
[1758248653529,7.07,246.8,246.74,2.0908957]
[1758248653925,7.07,246.8,246.75,7.05]
[1758248654129,7.07,246.8,246.74,2.0908957]
[1758248654531,7.07,246.8,246.75,7.05]
[1758248654928,7.07,246.84,246.74,9.1408957]
[1758248655432,95.0,246.85,246.74,9.1408957]
[1758248655927,7.07,246.84,246.74,9.1408957]
[1758248656133,95.0,246.85,246.74,9.1408957]
[1758248656433,7.07,246.84,246.74,9.1408957]
[1758248656932,95.0,246.85,246.74,9.1408957]
[1758248657135,7.07,246.84,246.74,2.0908957]
[1758248657433,7.07,246.81,246.77,0.02726324]
[1758248657933,0.03099089,246.82,246.77,0.02726324]
[1758248658134,7.07,246.81,246.77,0.02726324]
[1758248658433,0.03099089,246.82,246.77,0.02726324]
[1758248658833,7.07,246.81,246.77,0.02726324]
[1758248659034,0.03099089,246.82,246.77,0.02726324]
[1758248659334,7.07,246.81,246.77,0.02726324]
[1758248659634,0.03099089,246.82,246.77,0.02726324]
[1758248660435,7.07,246.81,246.78,7.05]
[1758248660734,99.73099089,246.82,246.78,7.05]
[1758248661033,99.73099089,246.82,246.77,0.02726324]
[1758248661638,7.07,246.81,246.77,0.02726324]
[1758248661838,99.73099089,246.82,246.77,7.07726324]
[1758248662038,7.07,246.81,246.77,7.07726324]
[1758248662240,99.73099089,246.82,246.77,7.07726324]
[1758248662439,7.07,246.81,246.77,7.07726324]
[1758248663534,99.73099089,246.82,246.77,7.07726324]
[1758248664337,7.07,246.81,246.77,7.07726324]
[1758248664841,99.73099089,246.82,246.77,7.07726324]
[1758248665041,99.73099089,246.82,246.77,0.02726324]
[1758248665240,7.07,246.81,246.77,0.02726324]
[1758248665441,99.7,246.81,246.77,0.02726324]
[1758248665641,7.07,246.8,246.77,0.02726324]
[1758248666036,99.7,246.81,246.77,0.02726324]
[1758248666232,7.07,246.8,246.77,0.02726324]
[1758248666743,99.7,246.81,246.77,0.02726324]
[1758248667444,7.07,246.8,246.77,0.02726324]
[1758248667944,99.7,246.81,246.77,0.02726324]
[1758248668446,6.85,246.8,246.77,0.02726324]
[1758248668845,99.7,246.81,246.77,0.02726324]
[1758248669247,6.85,246.8,246.77,0.02726324]
[1758248669445,99.7,246.81,246.77,0.02726324]
[1758248669644,6.85,246.8,246.77,0.02726324]
[1758248669845,6.85,246.81,246.77,0.02726324]
[1758248670046,55.75,246.8,246.77,6.71726324]
[1758248671137,6.85,246.79,246.77,6.71726324]
[1758248671940,0.03099089,246.82,246.78,6.69]
[1758248672146,6.85,246.81,246.77,6.71726324]
[1758248672345,90.05099089,246.82,246.77,0.02726324]
[1758248672546,6.85,246.81,246.77,0.02726324]
[1758248672745,90.05099089,246.82,246.77,0.02726324]
[1758248673046,6.85,246.81,246.77,0.02726324]
[1758248675243,90.05099089,246.82,246.77,0.02726324]
[1758248675651,6.85,246.81,246.77,0.02726324]
[1758248675847,90.05099089,246.82,246.77,0.02726324]
[1758248676347,0.03099089,246.82,246.77,0.02726324]
[1758248676546,6.85,246.8,246.77,0.02726324]
[1758248676942,99.68,246.81,246.77,0.02726324]
[1758248677544,6.85,246.8,246.77,0.02726324]
[1758248677749,99.68,246.81,246.77,0.02726324]
[1758248678152,6.85,246.8,246.77,0.02726324]
[1758248678349,99.68,246.81,246.77,0.02726324]
[1758248678554,6.85,246.8,246.77,0.02726324]
[1758248679350,99.68,246.81,246.77,0.02726324]
[1758248680353,6.85,246.8,246.77,0.02726324]
[1758248683150,99.68,246.81,246.77,0.02726324]
[1758248683355,6.85,246.8,246.77,0.02726324]
[1758248684356,99.68,246.81,246.77,0.02726324]
[1758248684857,6.85,246.8,246.77,6.71726324]
[1758248685355,6.85,246.78,246.77,0.02726324]
[1758248686857,43.7,246.79,246.77,0.02726324]
[1758248687057,94.05,246.81,246.78,6.69]
[1758248687553,6.85,246.8,246.77,0.02726324]
[1758248688362,87.2,246.81,246.77,0.02726324]
[1758248688564,6.85,246.8,246.77,0.02726324]
[1758248688764,6.85,246.8,246.78,3.57643291]
[1758248689065,6.85,246.8,246.79,3.57643291]
[1758248689770,87.2,246.81,246.77,0.02726324]
[1758248689965,6.85,246.8,246.77,0.02726324]
[1758248690372,87.2,246.81,246.77,0.02726324]
[1758248690566,6.85,246.8,246.77,0.02726324]